fUSD/lending_fUSD_20240726
["ID","MTS","AMOUNT","RATE_DAILY","PERIOD"]
[333229379,1721953839040,-500.0,0.00010989,2]
[333229380,1721953839052,-500.0,0.00010989,2]
[333229381,1721953839061,-1904.13,0.00010989,2]
[333229382,1721953839071,-932.93,0.00010989,2]
[333229383,1721953839080,-500.0,0.00010989,2]
[333229384,1721953839089,-500.0,0.00010989,2]
[333229385,1721953839099,-500.0,0.00010989,2]
[333229386,1721953839109,-500.0,0.00010989,2]
[333229387,1721953839118,-500.0,0.00010989,2]
[333229388,1721953839128,-500.0,0.00010989,2]
[333229389,1721953839137,-500.0,0.00010989,2]
[333229390,1721953839147,-500.0,0.00010989,2]
[333229391,1721953839156,-500.0,0.00010989,2]
[333229392,1721953839166,-398.12009887,0.00010989,2]
[333229393,1721953839175,-500.0,0.00010989,2]
[333229394,1721953839184,-500.0,0.00010989,2]
[333229395,1721953839194,-626.74,0.00010989,2]
[333229396,1721953839203,-500.0,0.00010989,2]
[333229397,1721953839213,-500.0,0.00010989,2]
[333229398,1721953839222,-500.0,0.00010989,2]
[333229399,1721953839232,-500.0,0.00010989,2]
[333229400,1721953839241,-500.0,0.00010989,2]
[333229401,1721953839251,-500.0,0.00010989,2]
[333229402,1721953839260,-500.0,0.00010989,2]
[333229403,1721953839269,-500.0,0.00010989,2]
[333229404,1721953839279,-500.0,0.00010989,2]
[333229405,1721953839288,-500.0,0.00010989,2]
[333229406,1721953839299,-342.72,0.00010989,2]
[333229407,1721953839310,-500.0,0.00010989,2]
[333229408,1721953839319,-500.0,0.00010989,2]
[333229409,1721953839328,-500.0,0.00010989,2]
[333229410,1721953839338,-500.0,0.00010989,2]
[333229411,1721953839347,-500.0,0.00010989,2]
[333229412,1721953839357,-500.0,0.00010989,2]
[333229413,1721953839366,-500.0,0.00010989,2]
[333229414,1721953839376,-500.0,0.00010989,2]
[333229415,1721953839385,-500.0,0.00010989,2]
[333229416,1721953839395,-500.0,0.00010989,2]
[333229417,1721953839404,-500.0,0.00010989,2]
[333229418,1721953839413,-500.0,0.00010989,2]
[333229419,1721953839423,-500.0,0.00010989,2]
[333229420,1721953839432,-500.0,0.00010989,2]
[333229421,1721953839441,-511.86,0.00010989,2]
[333229422,1721953839451,-500.0,0.00010989,2]
[333229423,1721953839460,-500.0,0.00010989,2]
[333229424,1721953839470,-813.17,0.00010989,2]
[333229425,1721953839479,-613.87,0.00010989,2]
[333229426,1721953839489,-500.0,0.00010989,2]
[333229427,1721953839498,-2754.28,0.00010989,2]
[333229428,1721953839508,-500.0,0.00010989,2]
[333229429,1721953839517,-1738.47,0.00010989,2]
[333229430,1721953839527,-500.0,0.00010989,2]
[333229431,1721953839536,-500.0,0.00010989,2]
[333229432,1721953839547,-505.83,0.00010989,2]
[333229433,1721953839557,-500.0,0.00010989,2]
[333229434,1721953839566,-396.7643241,0.00010989,2]
[333229435,1721953839576,-500.0,0.00010989,2]
[333229436,1721953839586,-2610.17,0.00010989,2]
[333229437,1721953839595,-500.0,0.00010989,2]
[333229438,1721953839605,-500.0,0.00010989,2]
[333229439,1721953839614,-500.0,0.00010989,2]
[333229440,1721953839623,-500.0,0.00010989,2]
[333229441,1721953839633,-500.0,0.00010989,2]
[333229442,1721953839646,-4098.2,0.00010989,2]
[333229443,1721953839656,-1193.75,0.00010989,2]
[333229444,1721953839665,-35000.0,0.0001099,2]
[333229445,1721953839674,-5800.0,0.00010991,2]
[333229446,1721953839686,-500.0,0.00010992,2]
[333229447,1721953839695,-500.0,0.00010992,2]
[333229448,1721953839704,-292.52,0.00010992,2]
[333229449,1721953839714,-500.0,0.00010992,2]
[333229450,1721953839724,-500.0,0.00010992,2]
[333229451,1721953839734,-500.0,0.00010992,2]
[333229452,1721953839743,-500.0,0.00010992,2]
[333229453,1721953839753,-500.0,0.00010992,2]
[333229454,1721953839762,-620.24,0.00010992,2]
[333229455,1721953839772,-538.35,0.00010992,2]
[333229456,1721953839781,-500.0,0.00010992,2]
[333229457,1721953839791,-593.57,0.00010992,2]
[333229458,1721953839802,-500.0,0.00010992,2]
[333229459,1721953839811,-150.0,0.00010992,2]
[333229460,1721953839822,-343.25,0.00010992,2]
[333229461,1721953839831,-500.0,0.00010992,2]
[333229462,1721953839841,-500.0,0.00010992,2]
[333229463,1721953839850,-224.54,0.00010992,2]
[333229464,1721953839860,-500.0,0.00010992,2]
[333229465,1721953839870,-500.0,0.00010992,2]
[333229466,1721953839880,-590.46,0.00010992,2]
[333229467,1721953839890,-500.0,0.00010992,2]
[333229468,1721953839900,-500.0,0.00010992,2]
[333229469,1721953839909,-213.97,0.00010992,2]
[333229470,1721953839973,-500.0,0.00010992,2]
[333229471,1721953839982,-168.93,0.00010992,2]
[333229472,1721953839992,-500.0,0.00010992,2]
[333229473,1721953840002,-500.0,0.00010992,2]
[333229474,1721953840011,-2104.16,0.00010992,2]
[333229475,1721953840020,-157.26,0.00010992,2]
[333229476,1721953840030,-500.0,0.00010992,2]
[333229477,1721953840039,-500.0,0.00010992,2]
[333229478,1721953840051,-171.89,0.00010992,2]
[333229479,1721953840061,-500.0,0.00010992,2]
[333229480,1721953840071,-500.0,0.00010992,2]
[333229481,1721953840081,-500.0,0.00010992,2]
[333229482,1721953840091,-401.97,0.00010992,2]
[333229483,1721953840101,-381.33,0.00010992,2]
[333229484,1721953840110,-913.9,0.00010992,2]
[333229485,1721953840120,-500.0,0.00010992,2]
[333229486,1721953840130,-500.0,0.00010992,2]
[333229487,1721953840140,-1668.98,0.00010992,2]
[333229488,1721953840150,-500.0,0.00010992,2]
[333229489,1721953840161,-500.0,0.00010992,2]
[333229490,1721953840171,-500.0,0.00010992,2]
[333229491,1721953840180,-283.93,0.00010992,2]
[333229492,1721953840190,-500.0,0.00010992,2]
[333229493,1721953840200,-500.0,0.00010992,2]
[333229494,1721953840210,-500.0,0.00010992,2]
[333229495,1721953840219,-476.02,0.00010992,2]
[333229496,1721953840229,-500.0,0.00010992,2]
[333229497,1721953840238,-381.63,0.00010992,2]
[333229498,1721953840248,-500.0,0.00010992,2]
[333229499,1721953840258,-500.0,0.00010992,2]
[333229500,1721953840268,-336.29628932,0.00010992,2]
[333229501,1721953840277,-500.0,0.00010992,2]
[333229502,1721953840287,-500.0,0.00010992,2]
[333229503,1721953840299,-500.0,0.00010992,2]
[333229504,1721953840308,-500.0,0.00010992,2]
[333229505,1721953840318,-575.0,0.00010992,2]
[333229506,1721953840327,-831.46,0.00010992,2]
[333229507,1721953840338,-438.73,0.00010992,2]
[333229508,1721953840347,-528.3,0.00010992,2]
[333229509,1721953840357,-500.0,0.00010992,2]
[333229510,1721953840367,-500.0,0.00010992,2]
[333229511,1721953840376,-540.95,0.00010992,2]
[333229512,1721953840386,-296.57,0.00010992,2]
[333229513,1721953840396,-1094.81,0.00010992,2]
[333229514,1721953840405,-500.0,0.00010992,2]
[333229515,1721953840415,-500.0,0.00010992,2]
[333229516,1721953840424,-500.0,0.00010992,2]
[333229517,1721953840433,-500.0,0.00010992,2]
[333229518,1721953840443,-397.18,0.00010993,2]
[333229519,1721953840453,-500.0,0.00010993,2]
[333229520,1721953840464,-500.0,0.00010993,2]
[333229521,1721953840473,-500.0,0.00010993,2]
[333229522,1721953840483,-500.0,0.00010993,2]
[333229523,1721953840492,-500.0,0.00010993,2]
[333229524,1721953840502,-760.98,0.00010993,2]
[333229525,1721953840512,-894.54,0.00010993,2]
[333229526,1721953840521,-586.92,0.00010996,2]
[333229527,1721953840531,-500.0,0.00010997,2]
[333229528,1721953840541,-500.0,0.00010997,2]
[333229529,1721953840553,-500.0,0.00010997,2]
[333229530,1721953840563,-500.0,0.00010997,2]
[333229531,1721953840573,-500.0,0.00010997,2]
[333229532,1721953840582,-231.29,0.00010997,2]
[333229533,1721953840592,-500.0,0.00010997,2]
[333229534,1721953840601,-500.0,0.00010997,2]
[333229535,1721953840611,-150.0,0.00010997,2]
[333229536,1721953840621,-512.84,0.00010997,2]
[333229537,1721953840630,-500.0,0.00010997,2]
[333229538,1721953840642,-231.05,0.00010997,2]
[333229539,1721953840652,-500.0,0.00010997,2]
[333229540,1721953840662,-500.0,0.00010997,2]
[333229541,1721953840671,-246.54,0.00010997,2]
[333229542,1721953840682,-500.0,0.00010997,2]
[333229543,1721953840692,-500.0,0.00010997,2]
[333229544,1721953840701,-500.0,0.00010997,2]
[333229545,1721953840712,-2104.16,0.00010997,2]
[333229546,1721953840722,-500.0,0.00010997,2]
[333229547,1721953840732,-248.41,0.00010997,2]
[333229548,1721953840742,-500.0,0.00010997,2]
[333229549,1721953840752,-547.82,0.00010997,2]
[333229550,1721953840762,-500.0,0.00010997,2]
[333229551,1721953840772,-500.0,0.00010997,2]
[333229552,1721953840782,-500.0,0.00010997,2]
[333229553,1721953840792,-500.0,0.00010997,2]
[333229554,1721953840804,-1904.13,0.00010997,2]
[333229555,1721953840813,-913.9,0.00010997,2]
[333229556,1721953840823,-500.0,0.00010997,2]
[333229557,1721953840833,-932.93,0.00010997,2]
[333229558,1721953840843,-500.0,0.00010997,2]
[333229559,1721953840853,-1668.98,0.00010997,2]
[333229560,1721953840863,-500.0,0.00010997,2]
[333229561,1721953840874,-500.0,0.00010997,2]
[333229562,1721953840884,-500.0,0.00010997,2]
[333229563,1721953840893,-262.44,0.00010997,2]
[333229564,1721953840903,-173.04,0.00010997,2]
[333229565,1721953840912,-500.0,0.00010997,2]
[333229566,1721953840922,-500.0,0.00010997,2]
[333229567,1721953840932,-500.0,0.00010997,2]
[333229568,1721953840942,-500.0,0.00010997,2]
[333229570,1721953840952,-500.0,0.00010997,2]
[333229571,1721953840962,-500.0,0.00010997,2]
[333229572,1721953840971,-333.39,0.00010997,2]
[333229573,1721953840981,-500.0,0.00010997,2]
[333229574,1721953840991,-587.59,0.00010997,2]
[333229575,1721953841000,-500.0,0.00010997,2]
[333229576,1721953841011,-500.0,0.00010997,2]
[333229577,1721953841020,-35915.22,0.00010997,2]
[333229578,1721953841031,-500.0,0.00010997,2]
[333229579,1721953841040,-500.0,0.00010997,2]
[333229580,1721953841055,-500.0,0.00010997,2]
[333229581,1721953841064,-626.74,0.00010997,2]
[333229582,1721953841073,-500.0,0.00010997,2]
[333229583,1721953841083,-500.0,0.00010997,2]
[333229584,1721953841093,-500.0,0.00010997,2]
[333229585,1721953841102,-500.0,0.00010997,2]
[333229586,1721953841111,-500.0,0.00010997,2]
[333229587,1721953841121,-302.26,0.00010997,2]
[333229588,1721953841131,-500.0,0.00010997,2]
[333229589,1721953841141,-500.0,0.00010997,2]
[333229590,1721953841151,-500.0,0.00010997,2]
[333229591,1721953841160,-500.0,0.00010997,2]
[333229592,1721953841169,-443.9,0.00010997,2]
[333229593,1721953841179,-500.0,0.00010997,2]
[333229594,1721953841188,-500.0,0.00010997,2]
[333229595,1721953841198,-500.0,0.00010997,2]
[333229596,1721953841208,-500.0,0.00010997,2]
[333229597,1721953841217,-500.0,0.00010997,2]
[333229598,1721953841227,-634.84,0.00010997,2]
[333229599,1721953841236,-500.0,0.00010997,2]
[333229600,1721953841246,-500.0,0.00010997,2]
[333229601,1721953841256,-500.0,0.00010997,2]
[333229602,1721953841266,-575.0,0.00010997,2]
[333229603,1721953841275,-500.0,0.00010997,2]
[333229604,1721953841285,-500.0,0.00010997,2]
[333229605,1721953841295,-500.0,0.00010997,2]
[333229606,1721953841307,-500.0,0.00010997,2]
[333229607,1721953841317,-500.0,0.00010997,2]
[333229608,1721953841326,-500.0,0.00010997,2]
[333229609,1721953841336,-500.0,0.00010997,2]
[333229610,1721953841346,-245.23,0.00010997,2]
[333229611,1721953841355,-831.46,0.00010997,2]
[333229612,1721953841364,-500.0,0.00010997,2]
[333229613,1721953841373,-500.0,0.00010997,2]
[333229614,1721953841383,-500.0,0.00010997,2]
[333229615,1721953841392,-500.0,0.00010997,2]
[333229616,1721953841401,-415.14,0.00010997,2]
[333229617,1721953841411,-500.0,0.00010997,2]
[333229618,1721953841420,-500.0,0.00010997,2]
[333229619,1721953841430,-500.0,0.00010997,2]
[333229620,1721953841440,-500.0,0.00010997,2]
[333229621,1721953841450,-500.0,0.00010997,2]
[333229622,1721953841460,-500.0,0.00010997,2]
[333229623,1721953841470,-500.0,0.00010997,2]
[333229624,1721953841480,-511.86,0.00010997,2]
[333229625,1721953841490,-500.0,0.00010997,2]
[333229626,1721953841500,-500.0,0.00010997,2]
[333229627,1721953841511,-500.0,0.00010997,2]
[333229628,1721953841520,-500.0,0.00010997,2]
[333229629,1721953841530,-813.17,0.00010997,2]
[333229630,1721953841540,-613.87,0.00010997,2]
[333229631,1721953841550,-500.0,0.00010997,2]
[333229632,1721953841560,-500.0,0.00010997,2]
[333229633,1721953841569,-500.0,0.00010997,2]
[333229634,1721953841579,-2754.28,0.00010997,2]
[333229635,1721953841589,-500.0,0.00010997,2]
[333229636,1721953841599,-500.0,0.00010997,2]
[333229637,1721953841608,-1738.47,0.00010997,2]
[333229638,1721953841618,-500.0,0.00010997,2]
[333229639,1721953841627,-500.0,0.00010997,2]
[333229640,1721953841640,-500.0,0.00010997,2]
[333229641,1721953841650,-500.0,0.00010997,2]
[333229642,1721953841659,-505.83,0.00010997,2]
[333229643,1721953841670,-1094.81,0.00010997,2]
[333229644,1721953841679,-500.0,0.00010997,2]
[333229645,1721953841690,-500.0,0.00010997,2]
[333229646,1721953841699,-500.0,0.00010997,2]
[333229647,1721953841709,-500.0,0.00010997,2]
[333229648,1721953841721,-2610.17,0.00010997,2]
[333229649,1721953841731,-472.64556307,0.00010997,2]
[333229650,1721953841740,-500.0,0.00010997,2]
[333229651,1721953841749,-500.0,0.00010997,2]
[333229652,1721953841759,-500.0,0.00010997,2]
[333229653,1721953841769,-500.0,0.00010997,2]
[333229654,1721953841779,-170.41,0.00010997,2]
[333229655,1721953841788,-500.0,0.00010997,2]
[333229656,1721953841799,-500.0,0.00010997,2]
[333229657,1721953841810,-500.0,0.00010997,2]
[333229658,1721953841819,-500.0,0.00010997,2]
[333229659,1721953841829,-500.0,0.00010997,2]
[333229660,1721953841839,-500.0,0.00010997,2]
[333229661,1721953841849,-216.98,0.00010998,2]
[333229662,1721953841859,-646.54,0.00010998,2]
[333229663,1721953841869,-365.54,0.00010998,2]
[333229664,1721953841879,-500.0,0.00010998,2]
[333229665,1721953841888,-611.8,0.00010998,2]
[333229666,1721953841897,-634.96,0.00010998,2]
[333229667,1721953841906,-464.78,0.00010998,2]
[333229668,1721953841916,-283.93,0.00010998,2]
[333229669,1721953841925,-416.72,0.00010998,2]
[333229670,1721953841935,-344.64,0.00010998,2]
[333229671,1721953841944,-500.0,0.00010998,2]
[333229672,1721953841953,-500.0,0.00010998,2]
[333229673,1721953841963,-500.0,0.00010998,2]
[333229674,1721953841972,-500.0,0.00010998,2]
[333229675,1721953841984,-500.0,0.00010998,2]
[333229676,1721953841994,-500.0,0.00010998,2]
[333229677,1721953842003,-500.0,0.00010998,2]
[333229678,1721953842013,-500.0,0.00010998,2]
[333229679,1721953842022,-199.52,0.00010998,2]
[333229680,1721953842032,-500.0,0.00010998,2]
[333229681,1721953842041,-247.22166364,0.00010998,2]
[333229682,1721953842053,-577.54,0.00010998,2]
[333229683,1721953842062,-500.0,0.00010998,2]
[333229684,1721953842072,-500.0,0.00010998,2]
[333229685,1721953842081,-346.93,0.00010998,2]
[333229686,1721953842090,-500.0,0.00010998,2]
[333229687,1721953842100,-262.18,0.00010998,2]
[333229688,1721953842110,-500.0,0.00010998,2]
[333229689,1721953842121,-500.0,0.00010998,2]
[333229690,1721953842131,-500.0,0.00010998,2]
[333229691,1721953842143,-560.72,0.00010998,2]
[333229692,1721953842154,-500.0,0.00010998,2]
[333229693,1721953842163,-500.0,0.00010998,2]
[333229694,1721953842173,-500.0,0.00010998,2]
[333229695,1721953842182,-641.8,0.00010998,2]
[333229696,1721953842191,-402.74,0.00010998,2]
[333229697,1721953842200,-500.0,0.00010998,2]
[333229698,1721953842210,-500.0,0.00010998,2]
[333229699,1721953842219,-500.0,0.00010998,2]
[333229700,1721953842228,-306.23,0.00010998,2]
[333229701,1721953842238,-500.0,0.00010998,2]
[333229702,1721953842248,-500.0,0.00010998,2]
[333229703,1721953842257,-500.0,0.00010998,2]
[333229704,1721953842268,-500.0,0.00010998,2]
[333229705,1721953842277,-500.0,0.00010998,2]
[333229706,1721953842286,-455.48,0.00010998,2]
[333229707,1721953842295,-150.0,0.00010998,2]
[333229708,1721953842306,-150.0,0.00010998,2]
[333229709,1721953842316,-150.0,0.00010998,2]
[333229710,1721953842326,-150.0,0.00010998,2]
[333229711,1721953842335,-500.0,0.00010998,2]
[333229712,1721953842346,-463.58,0.00010998,2]
[333229713,1721953842356,-500.0,0.00010998,2]
[333229714,1721953842366,-463.88,0.00010998,2]
[333229715,1721953842376,-500.0,0.00010998,2]
[333229716,1721953842385,-500.0,0.00010998,2]
[333229717,1721953842395,-500.0,0.00010998,2]
[333229718,1721953842404,-500.0,0.00010998,2]
[333229719,1721953842413,-500.0,0.00010998,2]
[333229720,1721953842423,-500.0,0.00010998,2]
[333229721,1721953842433,-500.0,0.00010998,2]
[333229722,1721953842442,-473.02,0.00010998,2]
[333229723,1721953842453,-166.13,0.00010998,2]
[333229724,1721953842463,-500.0,0.00010998,2]
[333229725,1721953842473,-500.0,0.00010998,2]
[333229726,1721953842483,-18514.9549031,0.00010998,2]
[333229727,1721953842493,-294.51,0.00010998,2]
[333229728,1721953842502,-434.47,0.00010998,2]
[333229729,1721953842512,-500.0,0.00010998,2]
[333229730,1721953842522,-500.0,0.00010998,2]
[333229731,1721953842532,-398.32,0.00010998,2]
[333229732,1721953842541,-500.0,0.00010998,2]
[333229733,1721953842552,-500.0,0.00010998,2]
[333229734,1721953842561,-500.0,0.00010998,2]
[333229735,1721953842573,-500.0,0.00010998,2]
[333229736,1721953842583,-500.0,0.00010998,2]
[333229737,1721953842593,-477.64,0.00010998,2]
[333229738,1721953842603,-255.68,0.00010998,2]
[333229739,1721953842612,-597.68,0.00010998,2]
[333229740,1721953842623,-597.68,0.00010998,2]
[333229741,1721953842632,-597.68,0.00010998,2]
[333229742,1721953842645,-597.68,0.00010998,2]
[333229743,1721953842654,-2104.16,0.00010998,2]
[333229744,1721953842663,-2104.16,0.00010998,2]
[333229745,1721953842673,-2104.16,0.00010998,2]
[333229746,1721953842684,-2104.16,0.00010998,2]
[333229747,1721953842694,-500.0,0.00010998,2]
[333229748,1721953842704,-643.6,0.00010998,2]
[333229749,1721953842714,-500.0,0.00010998,2]
[333229750,1721953842723,-500.0,0.00010998,2]
[333229751,1721953842733,-500.0,0.00010998,2]
[333229752,1721953842742,-500.0,0.00010998,2]
[333229753,1721953842752,-500.0,0.00010998,2]
[333229754,1721953842761,-500.0,0.00010998,2]
[333229755,1721953842771,-500.0,0.00010998,2]
[333229756,1721953842780,-452.49,0.00010998,2]
[333229757,1721953842789,-500.0,0.00010998,2]
[333229758,1721953842800,-500.0,0.00010998,2]
[333229759,1721953842809,-500.0,0.00010998,2]
[333229760,1721953842819,-500.0,0.00010998,2]
[333229761,1721953842828,-500.0,0.00010998,2]
[333229762,1721953842837,-500.0,0.00010998,2]
[333229763,1721953842846,-500.0,0.00010998,2]
[333229764,1721953842856,-500.0,0.00010998,2]
[333229765,1721953842865,-626.74,0.00010998,2]
[333229766,1721953842875,-626.74,0.00010998,2]
[333229767,1721953842884,-626.74,0.00010998,2]
[333229768,1721953842893,-626.74,0.00010998,2]
[333229769,1721953842903,-500.0,0.00010998,2]
[333229770,1721953842912,-500.0,0.00010998,2]
[333229772,1721953842922,-500.0,0.00010998,2]
[333229773,1721953842931,-550.9,0.00010998,2]
[333229774,1721953842940,-500.0,0.00010998,2]
[333229775,1721953842949,-500.0,0.00010998,2]
[333229776,1721953842958,-500.0,0.00010998,2]
[333229777,1721953842968,-500.0,0.00010998,2]
[333229778,1721953842978,-500.0,0.00010998,2]
[333229779,1721953842987,-260.01,0.00010998,2]
[333229780,1721953843003,-500.0,0.00010998,2]
[333229781,1721953843012,-500.0,0.00010998,2]
[333229782,1721953843021,-500.0,0.00010998,2]
[333229783,1721953843031,-500.0,0.00010998,2]
[333229784,1721953843040,-500.0,0.00010998,2]
[333229785,1721953843050,-500.0,0.00010998,2]
[333229786,1721953843059,-500.0,0.00010998,2]
[333229787,1721953843069,-454.43,0.00010998,2]
[333229788,1721953843078,-500.0,0.00010998,2]
[333229789,1721953843088,-314.56,0.00010998,2]
[333229790,1721953843097,-210.23,0.00010998,2]
[333229791,1721953843106,-673.11,0.00010998,2]
[333229792,1721953843116,-673.11,0.00010998,2]
[333229793,1721953843125,-673.11,0.00010998,2]
[333229794,1721953843134,-500.0,0.00010998,2]
[333229796,1721953843143,-673.11,0.00010998,2]
[333229798,1721953843154,-500.0,0.00010998,2]
[333229800,1721953843163,-500.0,0.00010998,2]
[333229802,1721953843172,-500.0,0.00010998,2]
[333229804,1721953843182,-500.0,0.00010998,2]
[333229806,1721953843191,-500.0,0.00010998,2]
[333229808,1721953843200,-399.19,0.00010998,2]
[333229810,1721953843209,-760.98,0.00010998,2]
[333229812,1721953843219,-833.43,0.00010998,2]
[333229814,1721953843228,-1904.13,0.00010998,2]
[333229816,1721953843237,-833.43,0.00010998,2]
[333229818,1721953843247,-1904.13,0.00010998,2]
[333229820,1721953843256,-1904.13,0.00010998,2]
[333229822,1721953843267,-833.43,0.00010998,2]
[333229824,1721953843276,-1904.13,0.00010998,2]
[333229826,1721953843285,-391.09,0.00010998,2]
[333229828,1721953843295,-833.43,0.00010998,2]
[333229830,1721953843305,-1904.13,0.00010998,2]
[333229832,1721953843315,-894.54,0.00010998,2]
[333229833,1721953843324,-913.9,0.00010998,2]
[333229834,1721953843333,-913.9,0.00010998,2]
[333229835,1721953843343,-913.9,0.00010998,2]
[333229836,1721953843352,-913.9,0.00010998,2]
[333229837,1721953843361,-500.0,0.00010998,2]
[333229838,1721953843371,-303.01,0.00010998,2]
[333229839,1721953843380,-932.93,0.00010998,2]
[333229840,1721953843389,-932.93,0.00010998,2]
[333229841,1721953843399,-932.93,0.00010998,2]
[333229842,1721953843409,-932.93,0.00010998,2]
[333229843,1721953843418,-932.93,0.00010998,2]
[333229844,1721953843428,-500.0,0.00010998,2]
[333229845,1721953843437,-500.0,0.00010998,2]
[333229846,1721953843447,-500.0,0.00010998,2]
[333229847,1721953843456,-270.25,0.00010998,2]
[333229848,1721953843466,-1668.98,0.00010998,2]
[333229849,1721953843476,-1668.98,0.00010998,2]
[333229850,1721953843485,-1668.98,0.00010998,2]
[333229851,1721953843495,-1668.98,0.00010998,2]
[333229852,1721953843504,-564.66,0.00010998,2]
[333229853,1721953843514,-564.66,0.00010998,2]
[333229854,1721953843523,-564.66,0.00010998,2]
[333229855,1721953843533,-564.66,0.00010998,2]
[333229856,1721953843543,-500.0,0.00010998,2]
[333229857,1721953843553,-500.0,0.00010998,2]
[333229858,1721953843563,-587.2,0.00010998,2]
[333229859,1721953843572,-500.0,0.00010998,2]
[333229860,1721953843582,-500.0,0.00010998,2]
[333229861,1721953843591,-500.0,0.00010998,2]
[333229862,1721953843601,-500.0,0.00010998,2]
[333229863,1721953843610,-500.0,0.00010998,2]
[333229865,1721953843620,-500.0,0.00010998,2]
[333229866,1721953843630,-477.11,0.00010998,2]
[333229867,1721953843642,-500.0,0.00010998,2]
[333229868,1721953843652,-500.0,0.00010998,2]
[333229869,1721953843662,-192.08,0.00010998,2]
[333229870,1721953843672,-500.0,0.00010998,2]
[333229871,1721953843683,-500.0,0.00010998,2]
[333229872,1721953843692,-500.0,0.00010998,2]
[333229874,1721953843702,-500.0,0.00010998,2]
[333229876,1721953843712,-500.0,0.00010998,2]
[333229878,1721953843724,-589.18,0.00010998,2]
[333229879,1721953843734,-500.0,0.00010998,2]
[333229880,1721953843744,-299.35,0.00010998,2]
[333229881,1721953843755,-500.0,0.00010998,2]
[333229882,1721953843764,-234.4,0.00010998,2]
[333229883,1721953843774,-500.0,0.00010998,2]
[333229884,1721953843785,-500.0,0.00010998,2]
[333229885,1721953843794,-500.0,0.00010998,2]
[333229886,1721953843807,-500.0,0.00010998,2]
[333229887,1721953843818,-500.0,0.00010998,2]
[333229888,1721953843828,-500.0,0.00010998,2]
[333229889,1721953843838,-500.0,0.00010998,2]
[333229890,1721953843848,-500.0,0.00010998,2]
[333229891,1721953843857,-363.46,0.00010998,2]
[333229892,1721953843867,-47609.0097465,0.00010998,2]
[333229893,1721953843877,-500.0,0.00010998,2]
[333229894,1721953843887,-500.0,0.00010998,2]
[333229895,1721953843896,-500.0,0.00010998,2]
[333229896,1721953843906,-510.72,0.00010998,2]
[333229897,1721953843915,-500.0,0.00010998,2]
[333229898,1721953843926,-500.0,0.00010998,2]
[333229899,1721953843936,-511.6,0.00010998,2]
[333229900,1721953843946,-500.0,0.00010998,2]
[333229901,1721953843956,-500.0,0.00010998,2]
[333229902,1721953843966,-500.0,0.00010998,2]
[333229903,1721953843975,-500.0,0.00010998,2]